Workbook

Sheet Beatrice StrongPS
A1: Beatrice Strong PS Enrolment Projections
B3: English Progam | J3: Total
B4: JK | C4: SK | D4: 1 | E4: 2 | F4: 3 | G4: 4 | H4: 5 | I4: 6
A5: 2022 | B5: 29 | C5: 25 | D5: 37 | E5: 32 | F5: 26 | G5: 25 | H5: 19 | I5: 29 | J5: =SUM(B5:I5) -> 222
A6: 2023 | B6: 25 | C6: 31 | D6: 24 | E6: 38 | F6: 33 | G6: 24 | H6: 26 | I6: 18 | J6: =SUM(B6:I6) -> 219
A7: 2024 | B7: 23 | C7: 28 | D7: 30 | E7: 25 | F7: 39 | G7: 30 | H7: 24 | I7: 23 | J7: 222
A8: 2025 | B8: 25 | C8: 26 | D8: 26 | E8: 31 | F8: 25 | G8: 35 | H8: 30 | I8: 23 | J8: 221
A9: 2026 | B9: 25 | C9: 27 | D9: 24 | E9: 27 | F9: 31 | G9: 23 | H9: 36 | I9: 28 | J9: 221
A10: 2027 | B10: 25 | C10: 27 | D10: 26 | E10: 25 | F10: 28 | G10: 28 | H10: 23 | I10: 33 | J10: 215
A11: 2028 | B11: 25 | C11: 27 | D11: 26 | E11: 27 | F11: 26 | G11: 25 | H11: 29 | I11: 21 | J11: 206
A12: 2029 | B12: 25 | C12: 27 | D12: 26 | E12: 27 | F12: 27 | G12: 23 | H12: 25 | I12: 27 | J12: 207
A13: 2030 | B13: 25 | C13: 27 | D13: 26 | E13: 27 | F13: 27 | G13: 25 | H13: 23 | I13: 23 | J13: 203
A14: 2031 | B14: 25 | C14: 27 | D14: 26 | E14: 26 | F14: 27 | G14: 25 | H14: 25 | I14: 21 | J14: 202
A15: 2032 | B15: 25 | C15: 27 | D15: 26 | E15: 26 | F15: 27 | G15: 25 | H15: 25 | I15: 23 | J15: 204

Sheet Ganaraska Trail PS
A1: Ganaraska Trail PS Enrolment Projections
B3: English Program | J3: French Immersion Program | Q3: Total
B4: JK | C4: SK | D4: 1 | E4: 2 | F4: 3 | G4: 4 | H4: 5 | I4: Subtotal | J4: SK | K4: 1 | L4: 2 | M4: 3 | N4: 4 | O4: 5 | P4: Subtotal
A5: 2022 | B5: 80 | C5: 32 | D5: 25 | E5: 31 | F5: 28 | G5: 36 | H5: 33 | I5: =SUM(B5:H5) -> 265 | J5: 61 | K5: 41 | L5: 57 | M5: 31 | N5: 38 | O5: 36 | P5: =SUM(J5:O5) -> 264 | Q5: =I5+P5 -> 529
A6: 2023 | B6: 74 | C6: 38 | D6: 34 | E6: 26 | F6: 32 | G6: 34 | H6: 37 | I6: =SUM(B6:H6) -> 275 | J6: 43 | K6: 62 | L6: 38 | M6: 52 | N6: 28 | O6: 27 | P6: =SUM(J6:O6) -> 250 | Q6: =I6+P6 -> 525
A7: 2024 | B7: 77 | C7: 35 | D7: 40 | E7: 35 | F7: 26 | G7: 39 | H7: 35 | I7: =SUM(B7:H7) -> 287 | J7: 41 | K7: 44 | L7: 59 | M7: 35 | N7: 47 | O7: 22 | P7: =SUM(J7:O7) -> 248 | Q7: =I7+P7 -> 535
A8: 2025 | B8: 74 | C8: 36 | D8: 36 | E8: 41 | F8: 36 | G8: 32 | H8: 40 | I8: =SUM(B8:H8) -> 295 | J8: 42 | K8: 42 | L8: 41 | M8: 55 | N8: 31 | O8: 37 | P8: =SUM(J8:O8) -> 248 | Q8: =I8+P8 -> 543
A9: 2026 | B9: 74 | C9: 35 | D9: 38 | E9: 37 | F9: 42 | G9: 43 | H9: 33 | I9: =SUM(B9:H9) -> 302 | J9: 41 | K9: 43 | L9: 39 | M9: 37 | N9: 51 | O9: 24 | P9: =SUM(J9:O9) -> 235 | Q9: =I9+P9 -> 537
A10: 2027 | B10: 74 | C10: 35 | D10: 37 | E10: 38 | F10: 37 | G10: 48 | H10: 44 | I10: =SUM(B10:H10) -> 313 | J10: 41 | K10: 42 | L10: 40 | M10: 35 | N10: 33 | O10: 42 | P10: =SUM(J10:O10) -> 233 | Q10: =I10+P10 -> 546
A11: 2028 | B11: 74 | C11: 35 | D11: 37 | E11: 37 | F11: 39 | G11: 44 | H11: 49 | I11: =SUM(B11:H11) -> 315 | J11: 41 | K11: 42 | L11: 39 | M11: 36 | N11: 31 | O11: 24 | P11: =SUM(J11:O11) -> 213 | Q11: =I11+P11 -> 528
A12: 2029 | B12: 74 | C12: 35 | D12: 37 | E12: 37 | F12: 38 | G12: 46 | H12: 45 | I12: =SUM(B12:H12) -> 312 | J12: 41 | K12: 42 | L12: 39 | M12: 35 | N12: 32 | O12: 23 | P12: =SUM(J12:O12) -> 212 | Q12: =I12+P12 -> 524
A13: 2030 | B13: 74 | C13: 35 | D13: 37 | E13: 37 | F13: 38 | G13: 45 | H13: 47 | I13: =SUM(B13:H13) -> 313 | J13: 41 | K13: 42 | L13: 39 | M13: 35 | N13: 31 | O13: 23 | P13: =SUM(J13:O13) -> 211 | Q13: =I13+P13 -> 524
A14: 2031 | B14: 74 | C14: 35 | D14: 37 | E14: 37 | F14: 38 | G14: 45 | H14: 46 | I14: =SUM(B14:H14) -> 312 | J14: 41 | K14: 42 | L14: 39 | M14: 35 | N14: 31 | O14: 23 | P14: =SUM(J14:O14) -> 211 | Q14: =I14+P14 -> 523
A15: 2032 | B15: 74 | C15: 35 | D15: 37 | E15: 37 | F15: 38 | G15: 45 | H15: 46 | I15: =SUM(B15:H15) -> 312 | J15: 41 | K15: 42 | L15: 39 | M15: 35 | N15: 31 | O15: 23 | P15: =SUM(J15:O15) -> 211 | Q15: =I15+P15 -> 523

Sheet NorthHopeCentralPS
A1: North Hope Central PS Enrolment Projections
B3: English Program | J3: Total
B4: JK | C4: SK | D4: 1 | E4: 2 | F4: 3 | G4: 4 | H4: 5 | I4: 6
A5: 2022 | B5: 20 | C5: 11 | D5: 13 | E5: 18 | F5: 15 | G5: 14 | H5: 15 | I5: 12 | J5: =SUM(B5:I5) -> 118
A6: 2023 | B6: 15 | C6: 19 | D6: 11 | E6: 13 | F6: 16 | G6: 15 | H6: 17 | I6: 16 | J6: =SUM(B6:I6) -> 122
A7: 2024 | B7: 15 | C7: 14 | D7: 19 | E7: 12 | F7: 12 | G7: 17 | H7: 18 | I7: 17 | J7: 124
A8: 2025 | B8: 14 | C8: 15 | D8: 14 | E8: 20 | F8: 10 | G8: 14 | H8: 19 | I8: 18 | J8: 124
A9: 2026 | B9: 14 | C9: 14 | D9: 16 | E9: 15 | F9: 18 | G9: 11 | H9: 15 | I9: 19 | J9: 122
A10: 2027 | B10: 14 | C10: 14 | D10: 14 | E10: 16 | F10: 14 | G10: 19 | H10: 13 | I10: 15 | J10: 119
A11: 2028 | B11: 14 | C11: 14 | D11: 14 | E11: 14 | F11: 14 | G11: 15 | H11: 22 | I11: 13 | J11: 120
A12: 2029 | B12: 14 | C12: 14 | D12: 14 | E12: 14 | F12: 13 | G12: 16 | H12: 17 | I12: 22 | J12: 124
A13: 2030 | B13: 14 | C13: 14 | D13: 14 | E13: 14 | F13: 13 | G13: 14 | H13: 17 | I13: 17 | J13: 117
A14: 2031 | B14: 14 | C14: 14 | D14: 14 | E14: 14 | F14: 13 | G14: 14 | H14: 16 | I14: 18 | J14: 117
A15: 2032 | B15: 14 | C15: 14 | D15: 14 | E15: 14 | F15: 13 | G15: 14 | H15: 16 | I15: 16 | J15: 115

Sheet Dr.M.S.HawkinsSrPS
A1: Dr. M.S. Hawkins Senior PS Enrolment Projections
B3: English Program | F3: French Immersion Program | J3: Total
B4: 6 | C4: 7 | D4: 8 | E4: Subtotal | F4: 6 | G4: 7 | H4: 8 | I4: Subtotal
A5: 2022 | B5: 30 | C5: 76 | D5: 75 | E5: =SUM(B5:D5) -> 181 | F5: 36 | G5: 29 | H5: 23 | I5: =SUM(F5:H5) -> 88 | J5: =E5+I5 -> 269
A6: 2023 | B6: 33 | C6: 81 | D6: 81 | E6: =SUM(B6:D6) -> 195 | F6: 36 | G6: 20 | H6: 29 | I6: =SUM(F6:H6) -> 85 | J6: =E6+I6 -> 280
A7: 2024 | B7: 37 | C7: 67 | D7: 87 | E7: 191 | F7: 27 | G7: 24 | H7: 20 | I7: 71 | J7: 262
A8: 2025 | B8: 35 | C8: 76 | D8: 72 | E8: 183 | F8: 22 | G8: 24 | H8: 24 | I8: 70 | J8: 253
A9: 2026 | B9: 40 | C9: 72 | D9: 81 | E9: 193 | F9: 37 | G9: 15 | H9: 24 | I9: 76 | J9: 269
A10: 2027 | B10: 33 | C10: 91 | D10: 77 | E10: 201 | F10: 24 | G10: 23 | H10: 15 | I10: 62 | J10: 263
A11: 2028 | B11: 44 | C11: 81 | D11: 96 | E11: 221 | F11: 42 | G11: 17 | H11: 23 | I11: 82 | J11: 303
A12: 2029 | B12: 49 | C12: 82 | D12: 86 | E12: 217 | F12: 24 | G12: 21 | H12: 17 | I12: 62 | J12: 279
A13: 2030 | B13: 45 | C13: 92 | D13: 88 | E13: 225 | F13: 23 | G13: 21 | H13: 21 | I13: 65 | J13: 290
A14: 2031 | B14: 47 | C14: 85 | D14: 98 | E14: 230 | F14: 23 | G14: 20 | H14: 21 | I14: 64 | J14: 294
A15: 2032 | B15: 46 | C15: 85 | D15: 91 | E15: 222 | F15: 23 | G15: 20 | H15: 20 | I15: 63 | J15: 285

Sheet PortHopeHS
A1: Port Hope HS Enrolment Projections
B3: English Program | F3: Total
B4: 9 | C4: 10 | D4: 11 | E4: 12
A5: 2022 | B5: 72 | C5: 51 | D5: 42 | E5: 59 | F5: =SUM(B5:E5) -> 224
A6: 2023 | B6: 53 | C6: 72 | D6: 53 | E6: 60 | F6: =SUM(B6:E6) -> 238
A7: 2024 | B7: 49 | C7: 54 | D7: 74 | E7: 74 | F7: 251
A8: 2025 | B8: 60 | C8: 49 | D8: 55 | E8: 96 | F8: 260
A9: 2026 | B9: 50 | C9: 60 | D9: 51 | E9: 76 | F9: 237
A10: 2027 | B10: 56 | C10: 51 | D10: 62 | E10: 72 | F10: 241
A11: 2028 | B11: 54 | C11: 56 | D11: 52 | E11: 84 | F11: 246
A12: 2029 | B12: 65 | C12: 54 | D12: 58 | E12: 71 | F12: 248
A13: 2030 | B13: 58 | C13: 65 | D13: 56 | E13: 78 | F13: 257
A14: 2031 | B14: 60 | C14: 59 | D14: 67 | E14: 76 | F14: 262
A15: 2032 | B15: 66 | C15: 61 | D15: 60 | E15: 89 | F15: 276

Sheet CobourgCI
A1: Cobourg CI Enrolment Projections
B3: English Program | G3: French Immersion Program
B4: 9 | C4: 10 | D4: 11 | E4: 12 | F4: Subtotal | G4: 9 | H4: 10 | I4: 11 | J4: 12 | K4: Subtotal | L4: Total
A5: 2022 | B5: 299 | C5: 268 | D5: 259 | E5: 291 | F5: =SUM(B5:E5) -> 1117 | G5: 86 | H5: 70 | I5: 59 | J5: 55 | K5: =SUM(G5:J5) -> 270 | L5: =F5+K5 -> 1387
A6: 2023 | B6: 276 | C6: 298 | D6: 261 | E6: 275 | F6: =SUM(B6:E6) -> 1110 | G6: 78 | H6: 75 | I6: 60 | J6: 55 | K6: =SUM(G6:J6) -> 268 | L6: =F6+K6 -> 1378
A7: 2024 | B7: 279 | C7: 276 | D7: 288 | E7: 277 | F7: 1120 | G7: 88 | H7: 69 | I7: 63 | J7: 58 | K7: 278 | L7: 1398
A8: 2025 | B8: 292 | C8: 276 | D8: 267 | E8: 306 | F8: 1141 | G8: 80 | H8: 77 | I8: 58 | J8: 60 | K8: 275 | L8: 1416
A9: 2026 | B9: 302 | C9: 292 | D9: 267 | E9: 283 | F9: 1144 | G9: 84 | H9: 70 | I9: 66 | J9: 55 | K9: 275 | L9: 1419
A10: 2027 | B10: 319 | C10: 300 | D10: 284 | E10: 286 | F10: 1189 | G10: 86 | H10: 73 | I10: 60 | J10: 64 | K10: 283 | L10: 1472
A11: 2028 | B11: 296 | C11: 319 | D11: 291 | E11: 302 | F11: 1208 | G11: 82 | H11: 76 | I11: 62 | J11: 57 | K11: 277 | L11: 1485
A12: 2029 | B12: 313 | C12: 296 | D12: 309 | E12: 309 | F12: 1227 | G12: 91 | H12: 72 | I12: 64 | J12: 59 | K12: 286 | L12: 1513
A13: 2030 | B13: 307 | C13: 311 | D13: 286 | E13: 327 | F13: 1231 | G13: 83 | H13: 79 | I13: 60 | J13: 60 | K13: 282 | L13: 1513
A14: 2031 | B14: 325 | C14: 306 | D14: 301 | E14: 303 | F14: 1235 | G14: 89 | H14: 72 | I14: 67 | J14: 57 | K14: 285 | L14: 1520
A15: 2032 | B15: 313 | C15: 324 | D15: 297 | E15: 320 | F15: 1254 | G15: 85 | H15: 78 | I15: 61 | J15: 63 | K15: 287 | L15: 1541
